fUST/lending_fUST_20250619
["ID","MTS","AMOUNT","RATE_DAILY","PERIOD"]
[366455547,1750263046457,-460.0,0.00021917,6]
[366455549,1750263046466,-460.0,0.00021917,6]
[366455551,1750263046476,-460.0,0.00021917,6]
[366455553,1750263046486,-460.0,0.00021917,6]
[366455555,1750263046495,-460.0,0.00021917,6]
[366455557,1750263046505,-430.0,0.00021917,6]
[366455558,1750263046514,-460.0,0.00021917,6]
[366455559,1750263046523,-460.0,0.00021917,6]
[366455560,1750263046533,-430.0,0.00021917,6]
[366455561,1750263046542,-460.0,0.00021917,6]
[366455562,1750263046551,-430.0,0.00021917,6]
[366455563,1750263046561,-430.0,0.00021917,6]
[366455564,1750263046570,-460.0,0.00021917,6]
[366455565,1750263046580,-460.0,0.00021917,6]
[366455566,1750263046589,-587.8728,0.00021917,6]
[366455567,1750263046598,-460.0,0.00021917,6]
[366455568,1750263046608,-440.0,0.00021917,6]
[366455569,1750263046618,-430.0,0.00021917,6]
[366455570,1750263046628,-1023.56,0.00021917,6]
[366455571,1750263046638,-430.0,0.00021917,6]
[366455572,1750263046649,-460.0,0.00021917,6]
[366455573,1750263046659,-460.0,0.00021917,6]
[366455574,1750263046668,-460.0,0.00021917,6]
[366455575,1750263046677,-580.70217513,0.00021917,6]
[366455576,1750263046687,-460.0,0.00021917,6]
[366455577,1750263046696,-427.0730036,0.00021917,6]
[366455578,1750263046706,-460.0,0.00021917,6]
[366455579,1750263046716,-430.0,0.00021917,6]
[366455580,1750263046726,-430.0,0.00021917,6]
[366455581,1750263046735,-430.0,0.00021917,6]
[366455582,1750263046745,-341.82857862,0.00021917,6]
[366455583,1750263046755,-402.1148411,0.00021917,6]
[366455584,1750263046764,-460.0,0.00021917,6]
[366455585,1750263046774,-430.0,0.00021917,6]
[366455586,1750263046783,-460.0,0.00021917,6]
[366455587,1750263046793,-460.0,0.00021917,6]
[366455588,1750263046803,-486.73730433,0.00021917,6]
[366455589,1750263046812,-460.0,0.00021917,6]
[366455590,1750263046822,-487.84,0.00021917,6]
[366455591,1750263046832,-460.0,0.00021917,6]
[366455592,1750263046841,-460.0,0.00021917,6]
[366455593,1750263046851,-500.0,0.00021917,6]
[366455594,1750263046861,-518.93534853,0.00021917,6]
[366455595,1750263046870,-175.11898593,0.00021917,6]
[366455596,1750263046880,-666.78,0.00021917,6]
[366455597,1750263046889,-460.0,0.00021917,6]
[366455598,1750263046900,-430.0,0.00021917,6]
[366455599,1750263046909,-373.12966969,0.00021917,6]
[366455600,1750263046919,-460.0,0.00021917,6]
[366455601,1750263046929,-460.0,0.00021917,6]
[366455602,1750263046938,-440.0,0.00021917,6]
[366455603,1750263046948,-460.0,0.00021917,6]
[366455604,1750263046959,-450.57450537,0.00021917,6]
[366455605,1750263046968,-460.0,0.00021917,6]
[366455606,1750263046978,-460.0,0.00021917,6]
[366455607,1750263046987,-460.0,0.00021917,6]
[366455608,1750263046995,-460.0,0.00021917,6]
[366455609,1750263047005,-460.0,0.00021917,6]
[366455610,1750263047014,-412.88230758,0.00021917,6]
[366455611,1750263047023,-460.0,0.00021917,6]
[366455612,1750263047033,-460.0,0.00021917,6]
[366455613,1750263047042,-460.0,0.00021917,6]
[366455614,1750263047052,-460.0,0.00021917,6]
[366455615,1750263047095,-460.0,0.00021917,6]
[366455616,1750263047104,-460.0,0.00021917,6]
[366455617,1750263047114,-460.0,0.00021917,6]
[366455618,1750263047124,-1170.02,0.00021917,6]
[366455619,1750263047134,-791.85,0.00021917,6]
[366455620,1750263047144,-460.0,0.00021917,6]
[366455621,1750263047153,-375.30368883,0.00021917,6]
[366455622,1750263047163,-300.0,0.00021917,6]
[366455623,1750263047172,-460.0,0.00021917,6]
[366455624,1750263047182,-568.65,0.00021917,6]
[366455625,1750263047191,-402.84952815,0.00021917,6]
[366455626,1750263047200,-549.65,0.00021917,6]
[366455627,1750263047209,-460.0,0.00021917,6]
[366455628,1750263047219,-460.0,0.00021917,6]
[366455629,1750263047228,-373.99555661,0.00021917,6]
[366455630,1750263047237,-391.82520641,0.00021917,6]
[366455631,1750263047247,-460.0,0.00021917,6]
[366455632,1750263047256,-500.0,0.00021917,6]
[366455633,1750263047266,-500.0,0.00021917,6]
[366455634,1750263047276,-460.0,0.00021917,6]
[366455635,1750263047286,-460.0,0.00021917,6]
[366455636,1750263047295,-460.0,0.00021917,6]
[366455637,1750263047306,-460.0,0.00021917,6]
[366455638,1750263047317,-460.0,0.00021917,6]
[366455639,1750263047327,-460.0,0.00021917,6]
[366455640,1750263047336,-460.0,0.00021917,6]
[366455641,1750263047346,-460.0,0.00021917,6]
[366455642,1750263047356,-460.0,0.00021917,6]
[366455643,1750263047366,-460.0,0.00021917,6]
[366455644,1750263047375,-460.0,0.00021917,6]
[366455645,1750263047385,-460.0,0.00021917,6]
[366455646,1750263047395,-432.78174916,0.00021917,6]
[366455647,1750263047404,-460.0,0.00021917,6]
[366455648,1750263047413,-460.0,0.00021917,6]
[366455649,1750263047423,-474.87,0.00021917,6]
[366455650,1750263047432,-518.56,0.00021917,6]
[366455651,1750263047442,-460.0,0.00021917,6]
[366455652,1750263047452,-671.47,0.00021917,6]
[366455653,1750263047462,-376.4716147,0.00021917,6]
[366455654,1750263047473,-4246.95,0.00021917,6]
[366455655,1750263047482,-460.0,0.00021917,6]
[366455656,1750263047492,-460.0,0.00021917,6]
[366455657,1750263047501,-460.0,0.00021917,6]
[366455658,1750263047511,-460.0,0.00021917,6]
[366455659,1750263047520,-401.05412847,0.00021917,6]
[366455660,1750263047530,-460.0,0.00021917,6]
[366455661,1750263047540,-460.0,0.00021917,6]
[366455662,1750263047549,-460.0,0.00021917,6]
[366455663,1750263047558,-460.0,0.00021917,6]
[366455664,1750263047568,-460.0,0.00021917,6]
[366455665,1750263047577,-460.0,0.00021917,6]
[366455666,1750263047587,-460.0,0.00021917,6]
[366455667,1750263047597,-460.0,0.00021917,6]
[366455668,1750263047606,-437.70647045,0.00021917,6]
[366455669,1750263047615,-522.94193963,0.00021917,6]
[366455670,1750263047625,-460.0,0.00021917,6]
[366455671,1750263047635,-460.0,0.00021917,6]
[366455672,1750263047644,-468.19705897,0.00021917,6]
[366455673,1750263047653,-460.0,0.00021917,6]
[366455674,1750263047663,-460.0,0.00021917,6]
[366455675,1750263047673,-460.0,0.00021917,6]
[366455676,1750263047682,-3897.04,0.00021917,6]
[366455677,1750263047691,-1762.73,0.00021917,6]
[366455678,1750263047700,-630.1418571,0.00021917,6]
[366455679,1750263047710,-741.78,0.00021917,6]
[366455680,1750263047719,-460.0,0.00021917,6]
[366455681,1750263047729,-460.0,0.00021917,6]
[366455682,1750263047738,-2527.95,0.00021917,6]
[366455683,1750263047748,-460.0,0.00021917,6]
[366455684,1750263047757,-453.93555481,0.00021917,6]
[366455685,1750263047767,-460.0,0.00021917,6]
[366455686,1750263047776,-230.72756774,0.00021917,6]
[366455687,1750263047785,-431.7247267,0.00021917,6]
[366455688,1750263047795,-460.0,0.00021917,6]
[366455689,1750263047804,-370.0,0.00021917,6]
[366455690,1750263047813,-500.0,0.00021917,6]
[366455691,1750263047822,-460.0,0.00021917,6]
[366455692,1750263047832,-430.0,0.00021917,6]
[366455693,1750263047841,-460.0,0.00021917,6]
[366455694,1750263047850,-461.87731641,0.00021917,6]
[366455695,1750263047860,-3589.72,0.00021917,6]
[366455696,1750263047869,-378.55255403,0.00021917,6]
[366455697,1750263047879,-1023.06,0.00021917,6]
[366455698,1750263047888,-430.0,0.00021917,6]
[366455699,1750263047897,-460.0,0.00021917,6]
[366455700,1750263047907,-460.0,0.00021917,6]
[366455701,1750263047916,-460.0,0.00021917,6]
[366455702,1750263047926,-460.0,0.00021917,6]
[366455703,1750263047935,-460.0,0.00021917,6]
[366455704,1750263047945,-277.67708074,0.00021917,6]
[366455705,1750263047955,-437.122033,0.00021917,6]
[366455706,1750263047964,-477.97749469,0.00021917,6]
[366455707,1750263047973,-159.41329124,0.00021917,6]
[366455708,1750263047982,-460.0,0.00021917,6]
[366455709,1750263047992,-662.53,0.00021917,6]
[366455710,1750263048001,-460.0,0.00021917,6]
[366455711,1750263048011,-460.0,0.00021917,6]
[366455712,1750263048021,-780.04,0.00021917,6]
[366455713,1750263048030,-460.0,0.00021917,6]
[366455714,1750263048040,-460.0,0.00021917,6]
[366455715,1750263048050,-460.0,0.00021917,6]
[366455716,1750263048060,-460.0,0.00021917,6]
[366455717,1750263048071,-500.0,0.00021917,6]
[366455718,1750263048080,-500.0,0.00021917,6]
[366455719,1750263048090,-500.0,0.00021917,6]
[366455720,1750263048100,-430.0,0.00021917,6]
[366455721,1750263048110,-500.0,0.00021917,6]
[366455722,1750263048119,-500.0,0.00021917,6]
[366455723,1750263048131,-500.0,0.00021917,6]
[366455724,1750263048141,-460.0,0.00021917,6]
[366455725,1750263048152,-396.28540638,0.00021917,6]
[366455726,1750263048163,-376.70003047,0.00021917,6]
[366455727,1750263048173,-460.0,0.00021917,6]
[366455728,1750263048183,-781.94,0.00021917,6]
[366455729,1750263048194,-781.94,0.00021917,6]
[366455730,1750263048204,-781.94,0.00021917,6]
[366455731,1750263048214,-460.0,0.00021917,6]
[366455732,1750263048224,-781.94,0.00021917,6]
[366455733,1750263048235,-618.72,0.00021917,6]
[366455734,1750263048244,-460.0,0.00021917,6]
[366455735,1750263048254,-460.0,0.00021917,6]
[366455736,1750263048264,-460.0,0.00021917,6]
[366455737,1750263048274,-376.04102151,0.00021917,6]
[366455738,1750263048284,-781.94,0.00021917,6]
[366455739,1750263048295,-781.94,0.00021917,6]
[366455740,1750263048308,-4198.1,0.00021917,6]
[366455741,1750263048318,-781.94,0.00021917,6]
[366455742,1750263048328,-781.94,0.00021917,6]
[366455743,1750263048339,-684.86,0.00021917,6]
[366455744,1750263048349,-460.0,0.00021917,6]
[366455745,1750263048359,-460.0,0.00021917,6]
[366455746,1750263048369,-460.0,0.00021917,6]
[366455747,1750263048379,-1596.71,0.00021917,6]
[366455748,1750263048390,-781.94,0.00021917,6]
[366455749,1750263048400,-546.05,0.00021917,6]
[366455750,1750263048410,-781.94,0.00021917,6]
[366455751,1750263048420,-781.94,0.00021917,6]
[366455752,1750263048430,-460.0,0.00021917,6]
[366455753,1750263048440,-460.0,0.00021917,6]
[366455754,1750263048451,-649.37,0.00021917,6]
[366455755,1750263048461,-477.36,0.00021917,6]
[366455756,1750263048471,-374.67780047,0.00021917,6]
[366455757,1750263048480,-349.44075123,0.00021917,6]
[366455758,1750263048490,-460.0,0.00021917,6]
[366455759,1750263048500,-460.0,0.00021917,6]
[366455760,1750263048510,-460.0,0.00021917,6]
[366455761,1750263048521,-460.0,0.00021917,6]
[366455762,1750263048531,-1896.77,0.00021917,6]
[366455763,1750263048541,-460.0,0.00021917,6]
[366455764,1750263048551,-606.94,0.00021917,6]
[366455765,1750263048562,-460.0,0.00021917,6]
[366455766,1750263048571,-460.0,0.00021917,6]
[366455767,1750263048581,-460.0,0.00021917,6]
[366455768,1750263048592,-247.73111597,0.00021917,6]
[366455769,1750263048601,-460.0,0.00021917,6]
[366455770,1750263048611,-975.69,0.00021917,6]
[366455771,1750263048621,-460.0,0.00021917,6]
[366455772,1750263048631,-460.0,0.00021917,6]
[366455773,1750263048641,-460.0,0.00021917,6]
[366455774,1750263048651,-460.0,0.00021917,6]
[366455775,1750263048661,-2289.57,0.00021917,6]
[366455776,1750263048672,-460.0,0.00021917,6]
[366455777,1750263048682,-460.0,0.00021917,6]
[366455778,1750263048691,-460.0,0.00021917,6]
[366455779,1750263048701,-607.85,0.00021917,6]
[366455780,1750263048710,-460.0,0.00021917,6]
[366455781,1750263048719,-460.0,0.00021917,6]
[366455782,1750263048729,-430.0,0.00021917,6]
[366455783,1750263048739,-1286.04,0.00021917,6]
[366455784,1750263048749,-460.0,0.00021917,6]
[366455785,1750263048759,-814.77,0.00021917,6]
[366455786,1750263048769,-460.0,0.00021917,6]
[366455787,1750263048779,-1284.44,0.00021917,6]
[366455788,1750263048789,-460.0,0.00021917,6]
[366455789,1750263048799,-326.93864061,0.00021917,6]
[366455790,1750263048808,-378.91041067,0.00021917,6]
[366455791,1750263048817,-460.0,0.00021917,6]
[366455792,1750263048828,-460.0,0.00021917,6]
[366455793,1750263048838,-460.0,0.00021917,6]
[366455794,1750263048848,-357.07438444,0.00021917,6]
[366455795,1750263048858,-460.0,0.00021917,6]
[366455796,1750263048868,-460.0,0.00021917,6]
[366455797,1750263048878,-166.62404177,0.00021917,6]
[366455798,1750263048888,-460.0,0.00021917,6]
[366455799,1750263048899,-460.0,0.00021917,6]
[366455800,1750263048909,-460.0,0.00021917,6]
[366455801,1750263048918,-460.0,0.00021917,6]
[366455802,1750263048929,-460.0,0.00021917,6]
[366455803,1750263048940,-430.0,0.00021917,6]
[366455804,1750263048950,-460.0,0.00021917,6]
[366455805,1750263048959,-377.46752537,0.00021917,6]
[366455806,1750263048968,-460.0,0.00021917,6]
[366455807,1750263048978,-460.0,0.00021917,6]
[366455808,1750263048988,-460.0,0.00021917,6]
[366455809,1750263048998,-460.0,0.00021917,6]
[366455810,1750263049008,-460.0,0.00021917,6]
[366455811,1750263049018,-460.0,0.00021917,6]
[366455812,1750263049028,-460.0,0.00021917,6]
[366455813,1750263049038,-362.91297158,0.00021917,6]
[366455814,1750263049048,-460.0,0.00021917,6]
[366455815,1750263049058,-460.0,0.00021917,6]
[366455816,1750263049069,-460.0,0.00021917,6]
[366455817,1750263049079,-324.71540448,0.00021917,6]
[366455818,1750263049090,-460.0,0.00021917,6]
[366455819,1750263049100,-487.37339246,0.00021917,6]
[366455820,1750263049111,-460.0,0.00021917,6]
[366455821,1750263049121,-460.0,0.00021917,6]
[366455822,1750263049132,-460.0,0.00021917,6]
[366455823,1750263049142,-460.0,0.00021917,6]
[366455824,1750263049153,-460.0,0.00021917,6]
[366455825,1750263049163,-380.65226676,0.00021917,6]
[366455826,1750263049173,-460.0,0.00021917,6]
[366455827,1750263049183,-518.0509968,0.00021917,6]
[366455828,1750263049193,-460.0,0.00021917,6]
[366455829,1750263049204,-577.06,0.00021917,6]
[366455830,1750263049214,-460.0,0.00021917,6]
[366455831,1750263049224,-460.0,0.00021917,6]
[366455832,1750263049234,-460.0,0.00021917,6]
[366455833,1750263049245,-375.05593713,0.00021917,6]
[366455834,1750263049255,-460.0,0.00021917,6]
[366455835,1750263049265,-558.49169138,0.00021917,6]
[366455836,1750263049275,-460.0,0.00021917,6]
[366455837,1750263049285,-761.19,0.00021917,6]
[366455838,1750263049296,-460.0,0.00021917,6]
[366455839,1750263049308,-375.39438031,0.00021917,6]
[366455840,1750263049318,-400.63538985,0.00021917,6]
[366455841,1750263049329,-460.0,0.00021917,6]
[366455842,1750263049339,-460.0,0.00021917,6]
[366455843,1750263049351,-641.22,0.00021917,6]
[366455844,1750263049361,-232.2231976,0.00021917,6]
[366455845,1750263049372,-460.0,0.00021917,6]
[366455846,1750263049382,-460.0,0.00021917,6]
[366455847,1750263049393,-429.69656759,0.00021917,6]
[366455848,1750263049403,-460.0,0.00021917,6]
[366455849,1750263049413,-460.0,0.00021917,6]
[366455850,1750263049423,-460.0,0.00021917,6]
[366455851,1750263049433,-460.0,0.00021917,6]
[366455852,1750263049443,-460.0,0.00021917,6]
[366455853,1750263049453,-460.0,0.00021917,6]
[366455854,1750263049463,-460.0,0.00021917,6]
[366455855,1750263049472,-186.03139637,0.00021917,6]
[366455856,1750263049482,-460.0,0.00021917,6]
[366455857,1750263049491,-460.0,0.00021917,6]
[366455858,1750263049500,-500.0,0.00021917,6]
[366455859,1750263049510,-1070.37,0.00021917,6]
[366455860,1750263049520,-460.0,0.00021917,6]
[366455861,1750263049530,-460.0,0.00021917,6]
[366455862,1750263049540,-400.0,0.00021917,6]
[366455863,1750263049551,-460.0,0.00021917,6]
[366455864,1750263049560,-460.0,0.00021917,6]
[366455865,1750263049570,-460.0,0.00021917,6]
[366455866,1750263049581,-460.0,0.00021917,6]
[366455867,1750263049591,-460.0,0.00021917,6]
[366455868,1750263049601,-435.59356494,0.00021917,6]
[366455869,1750263049611,-460.0,0.00021917,6]
[366455870,1750263049621,-1741.04,0.00021917,6]
[366455871,1750263049631,-404.83808626,0.00021917,6]
[366455872,1750263049641,-460.0,0.00021917,6]
[366455873,1750263049651,-460.0,0.00021917,6]
[366455874,1750263049661,-460.0,0.00021917,6]
[366455875,1750263049671,-460.0,0.00021917,6]
[366455876,1750263049681,-460.0,0.00021917,6]
[366455877,1750263049692,-430.0,0.00021917,6]
[366455878,1750263049701,-430.0,0.00021917,6]
[366455879,1750263049711,-460.0,0.00021917,6]
[366455880,1750263049720,-460.0,0.00021917,6]
[366455881,1750263049730,-460.0,0.00021917,6]
[366455882,1750263049740,-460.0,0.00021917,6]
[366455883,1750263049750,-460.0,0.00021917,6]
[366455884,1750263049759,-9058.0,0.00021917,6]
[366455885,1750263049770,-460.0,0.00021917,6]
[366455886,1750263049780,-460.0,0.00021917,6]
[366455887,1750263049789,-405.14784013,0.00021917,6]
[366455888,1750263049799,-460.0,0.00021917,6]
[366455889,1750263049809,-460.0,0.00021917,6]
[366455890,1750263049818,-460.0,0.00021917,6]
[366455891,1750263049828,-3081.13,0.00021917,6]
[366455892,1750263049837,-432.09875491,0.00021917,6]
[366455893,1750263049847,-514.89,0.00021917,6]
[366455894,1750263049857,-460.0,0.00021917,6]
[366455895,1750263049867,-460.0,0.00021917,6]
[366455896,1750263049877,-460.0,0.00021917,6]
[366455897,1750263049886,-460.0,0.00021917,6]
[366455898,1750263049896,-460.0,0.00021917,6]
[366455899,1750263049906,-460.0,0.00021917,6]
[366455900,1750263049915,-460.0,0.00021917,6]
[366455901,1750263049924,-718.17,0.00021917,6]
[366455902,1750263049934,-460.0,0.00021917,6]
[366455903,1750263049944,-715.56,0.00021917,6]
[366455904,1750263049954,-460.0,0.00021917,6]
[366455905,1750263049964,-271.92012974,0.00021917,6]
[366455906,1750263049973,-182.22205189,0.00021917,6]
[366455907,1750263049983,-440.0,0.00021917,6]
[366455908,1750263049993,-460.0,0.00021917,6]
[366455909,1750263050002,-462.03,0.00021917,6]
[366455910,1750263050012,-380.9513032,0.00021917,6]
[366455911,1750263050022,-460.0,0.00021917,6]
[366455912,1750263050032,-460.0,0.00021917,6]
[366455913,1750263050042,-3693.66,0.00021917,6]
[366455914,1750263050051,-460.0,0.00021917,6]
[366455915,1750263050060,-460.0,0.00021917,6]
[366455916,1750263050070,-162.188641,0.00021918,2]
[366455917,1750263050080,-166.0,0.00021918,2]
[366455918,1750263050091,-947.14694789,0.00021934,6]
[366455919,1750263050100,-1529.47743691,0.00021968,2]
[366455920,1750263050110,-500.0,0.00021973,2]
[366455921,1750263050120,-496.36594109,0.00021973,2]
[366455922,1750263050130,-368.47301716,0.00021973,2]
[366455923,1750263050141,-500.0,0.00021973,2]
[366455924,1750263050150,-376.62669077,0.00021973,2]
[366455925,1750263050160,-312.91867462,0.00021973,2]
[366455926,1750263050170,-505.162816,0.00021973,2]
[366455927,1750263050180,-500.0,0.00021973,2]
[366455928,1750263050190,-500.0,0.00021973,2]
[366455929,1750263050199,-500.0,0.00021973,2]
[366455930,1750263050209,-500.0,0.00021973,2]
[366455931,1750263050219,-500.0,0.00021973,2]
[366455932,1750263050229,-500.0,0.00021973,2]
[366455933,1750263050239,-500.0,0.00021973,2]
[366455934,1750263050383,-500.0,0.00021973,2]
[366455935,1750263050393,-781.94,0.00021999,6]
[366455936,1750263050402,-781.94,0.00021999,6]
[366455937,1750263050412,-1000.0,0.00022,22]
[366455938,1750263050421,-28613.09021835,0.00022,2]
[366455939,1750263050431,-1815.02933677,0.00022,2]
[366455940,1750263050440,-188.0,0.00022,2]
[366455941,1750263050450,-158.0,0.00022,2]
[366455942,1750263050460,-300.0,0.0002201,2]
[366455943,1750263050470,-203.74418757,0.00022045,2]
[366455944,1750263050480,-947.14694789,0.00022107,6]
[366455945,1750263050490,-1529.47743691,0.00022119,2]
[366455946,1750263050499,-371.27325815,0.00022135,2]
[366455947,1750263050509,-160.0,0.00022172,2]
[366455948,1750263050518,-845.78193577,0.00022172,2]
[366455949,1750263050527,-12542.39314967,0.00022172,2]
[366455950,1750263050537,-160.0,0.00022172,2]
[366455951,1750263050546,-424.70586748,0.00022172,2]
[366455952,1750263050556,-213.43818883,0.00022172,2]
[366455953,1750263050566,-835.98428123,0.00022172,2]
[366455954,1750263050575,-229.98435572,0.00022172,2]
[366455955,1750263050584,-160.0,0.00022172,2]
[366455956,1750263050593,-160.0,0.00022172,2]
[366455957,1750263050603,-299.56773809,0.00022173,2]
[366455958,1750263050612,-500.0,0.00022173,2]
[366455959,1750263050621,-500.0,0.00022173,2]
[366455960,1750263050631,-500.0,0.00022173,2]
[366455961,1750263050641,-279.40538053,0.00022173,2]
[366455962,1750263050651,-500.0,0.00022173,2]
[366455963,1750263050660,-152.97055478,0.00022173,2]
[366455964,1750263050669,-600.0,0.00022173,2]
[366455965,1750263050678,-500.0,0.00022173,2]
[366455966,1750263050688,-500.0,0.00022173,2]
[366455967,1750263050697,-500.0,0.00022173,2]
[366455968,1750263050707,-258.92658341,0.00022173,2]
[366455969,1750263050716,-500.0,0.00022173,2]
[366455970,1750263050725,-500.0,0.00022173,2]
[366455971,1750263050734,-502.67521021,0.00022173,2]
[366455972,1750263050743,-500.0,0.00022173,2]
[366455973,1750263050753,-500.0,0.00022173,2]
[366455974,1750263050762,-500.94760593,0.00022173,2]
[366455975,1750263050772,-500.0,0.00022173,2]
[366455976,1750263050782,-500.0,0.00022173,2]
[366455977,1750263050792,-513.99793096,0.00022173,2]
[366455978,1750263050801,-500.0,0.00022173,2]
[366455979,1750263050811,-500.0,0.00022173,2]
[366455980,1750263050820,-260.5176198,0.00022173,2]
[366455981,1750263050830,-500.0,0.00022173,2]
[366455982,1750263050839,-527.12833942,0.00022173,2]
[366455983,1750263050849,-500.0,0.00022173,2]
[366455984,1750263050858,-500.0,0.00022173,2]
[366455985,1750263050867,-243.40682598,0.00022173,2]
[366455986,1750263050877,-500.0,0.00022173,2]
[366455987,1750263050888,-573.8401486,0.00022173,2]
[366455988,1750263050897,-500.0,0.00022173,2]
[366455989,1750263050907,-500.0,0.00022173,2]
[366455990,1750263050916,-201.86789802,0.00022173,2]
[366455991,1750263050926,-315.48910325,0.00022177,2]
[366455992,1750263050935,-781.94,0.0002219,6]
[366455993,1750263050945,-781.94,0.0002219,6]
[366455994,1750263050954,-781.94,0.0002219,6]
[366455995,1750263050964,-781.94,0.0002219,6]
[366455996,1750263050973,-781.94,0.0002219,6]
[366455997,1750263050982,-781.94,0.0002219,6]
[366455998,1750263050992,-290.0,0.00022191,6]
[366455999,1750263051002,-460.0,0.00022191,6]
[366456000,1750263051012,-460.0,0.00022191,6]
[366456001,1750263051021,-340.0,0.00022191,6]
[366456002,1750263051031,-245.61744052,0.00022191,6]
[366456003,1750263051041,-460.0,0.00022191,6]
[366456004,1750263051050,-460.0,0.00022191,6]
[366456005,1750263051059,-408.6610821,0.00022191,6]
[366456006,1750263051069,-460.0,0.00022191,6]
[366456007,1750263051078,-410.0,0.00022191,6]
[366456008,1750263051087,-410.0,0.00022191,6]
[366456009,1750263051096,-460.0,0.00022191,6]
[366456010,1750263051106,-460.0,0.00022191,6]
[366456011,1750263051115,-460.0,0.00022191,6]
[366456012,1750263051124,-417.59661249,0.00022191,6]
[366456013,1750263051134,-460.0,0.00022191,6]
[366456014,1750263051144,-460.0,0.00022191,6]
[366456015,1750263051153,-401.97302258,0.00022191,6]
[366456016,1750263051162,-400.0,0.00022191,6]
[366456017,1750263051172,-403.37743186,0.00022191,6]
[366456018,1750263051180,-460.0,0.00022191,6]
[366456019,1750263051190,-460.0,0.00022191,6]
[366456020,1750263051199,-460.0,0.00022191,6]
[366456021,1750263051208,-388.35225616,0.00022191,6]
[366456022,1750263051217,-460.0,0.00022191,6]
[366456023,1750263051226,-460.0,0.00022191,6]
[366456024,1750263051236,-460.0,0.00022191,6]
[366456025,1750263051245,-460.0,0.00022191,6]
[366456026,1750263051254,-400.0,0.00022191,6]
[366456027,1750263051263,-395.52486214,0.00022191,6]
[366456028,1750263051272,-460.0,0.00022191,6]
[366456029,1750263051282,-410.0,0.00022191,6]
[366456030,1750263051292,-400.0,0.00022191,6]
[366456031,1750263051302,-460.0,0.00022191,6]
[366456032,1750263051313,-336.52995619,0.00022191,6]
[366456033,1750263051323,-460.0,0.00022191,6]
[366456034,1750263051332,-344.1877609,0.00022191,6]
[366456035,1750263051343,-460.0,0.00022191,6]
[366456036,1750263051353,-460.0,0.00022191,6]
[366456037,1750263051363,-460.0,0.00022191,6]
[366456038,1750263051373,-460.0,0.00022191,6]
[366456039,1750263051384,-380.0,0.00022191,6]
[366456040,1750263051394,-410.0,0.00022191,6]
[366456041,1750263051403,-410.0,0.00022191,6]
[366456042,1750263051413,-207.37699835,0.00022191,6]
[366456043,1750263051423,-460.0,0.00022191,6]
[366456044,1750263051432,-440.0,0.00022191,6]
[366456045,1750263051441,-460.0,0.00022191,6]
[366456046,1750263051450,-424.02955047,0.00022191,6]
[366456047,1750263051460,-460.0,0.00022191,6]
[366456048,1750263051469,-460.0,0.00022191,6]
[366456049,1750263051479,-460.0,0.00022191,6]
[366456050,1750263051488,-460.0,0.00022191,6]
[366456051,1750263051498,-460.0,0.00022191,6]